[Event "Titled Tuesday Blitz October 11 Late 2022"]
[White "Kravtsiv, Martyn"]
[Black "Czernek, Tymon"]
[WhiteFideId "14113147"]
[BlackFideId "1199510"]
[WhiteElo "2694"]
[BlackElo "2240"]
[Result "1/2-1/2"]
[Round "04"]
[TimeControl "180+1"]
[Date "2022.10.11"]
[WhiteClock "0:00:10"]
[BlackClock "0:00:21"]

1. e4 {[%clk 0:03:00]}  c5 {[%clk 0:02:58]} 2. Nf3 {[%clk 0:03:01]}  d6 {[%clk 0:02:58]} 3. Bb5+ {[%clk 0:02:59]}  Nd7 {[%clk 0:02:58]} 4. d4 {[%clk 0:02:57]}  cxd4 {[%clk 0:02:58]} 5. Qxd4 {[%clk 0:02:58]}  e5 {[%clk 0:02:56]} 6. Qd3 {[%clk 0:02:57]}  h6 {[%clk 0:02:55]} 7. c4 {[%clk 0:02:47]}  Nf6 {[%clk 0:02:54]} 8. Nc3 {[%clk 0:02:47]}  Be7 {[%clk 0:02:54]} 9. Be3 {[%clk 0:02:46]}  O-O {[%clk 0:02:54]} 10. O-O {[%clk 0:02:46]}  a6 {[%clk 0:02:52]} 11. Bxd7 {[%clk 0:02:45]}  Bxd7 {[%clk 0:02:53]} 12. h3 {[%clk 0:02:44]}  Rc8 {[%clk 0:02:51]} 13. a4 {[%clk 0:02:43]}  Be6 {[%clk 0:02:32]} 14. Nd2 {[%clk 0:02:40]}  Nd7 {[%clk 0:02:22]} 15. b4 {[%clk 0:02:37]}  Nb6 {[%clk 0:02:06]} 16. Nd5 {[%clk 0:02:36]}  Nxd5 {[%clk 0:02:05]} 17. cxd5 {[%clk 0:02:34]}  Bd7 {[%clk 0:02:05]} 18. f3 {[%clk 0:01:59]}  f5 {[%clk 0:02:04]} 19. b5 {[%clk 0:01:56]}  axb5 {[%clk 0:01:48]} 20. axb5 {[%clk 0:01:56]}  Bg5 {[%clk 0:01:47]} 21. Bxg5 {[%clk 0:01:37]}  hxg5 {[%clk 0:01:15]} 22. Rab1 {[%clk 0:01:29]}  g4 {[%clk 0:01:09]} 23. fxg4 {[%clk 0:01:21]}  fxg4 {[%clk 0:01:10]} 24. Rxf8+ {[%clk 0:01:20]}  Qxf8 {[%clk 0:01:11]} 25. hxg4 {[%clk 0:01:19]}  Bxg4 {[%clk 0:01:11]} 26. Nc4 {[%clk 0:01:15]}  Qf6 {[%clk 0:00:57]} 27. Rf1 {[%clk 0:01:09]}  Qg6 {[%clk 0:00:52]} 28. b6 {[%clk 0:01:05]}  Bd7 {[%clk 0:00:48]} 29. Na5 {[%clk 0:01:02]}  Bb5 {[%clk 0:00:21]} 30. Qxb5 {[%clk 0:00:53]}  Rc2 {[%clk 0:00:21]} 31. Rf2 {[%clk 0:00:37]}  Rc1+ {[%clk 0:00:20]} 32. Rf1 {[%clk 0:00:37]}  Rc2 {[%clk 0:00:21]} 33. Rf2 {[%clk 0:00:17]}  Rc1+ {[%clk 0:00:21]} 34. Rf1 {[%clk 0:00:10]}  Rc2 {[%clk 0:00:21]} 1/2-1/2


[Site "https://www.chess.com"]

[Event "Titled Tuesday Blitz October 11 Late 2022"]
[White "Luxama, Jacques Muller"]
[Black "Rodriguez Santiago, Jaime"]
[WhiteFideId "11900113"]
[BlackFideId "3100898"]
[WhiteElo "1931"]
[BlackElo "2025"]
[Result "0-1"]
[Round "04"]
[TimeControl "180+1"]
[Date "2022.10.12"]
[WhiteClock "0:00:02"]
[BlackClock "0:00:19"]

1. e4 {[%clk 0:02:59]}  g6 {[%clk 0:02:58]} 2. d4 {[%clk 0:02:58]}  d6 {[%clk 0:02:58]} 3. Nf3 {[%clk 0:02:58]}  Bg7 {[%clk 0:02:58]} 4. h3 {[%clk 0:02:58]}  Nf6 {[%clk 0:02:58]} 5. Nc3 {[%clk 0:02:58]}  c6 {[%clk 0:02:58]} 6. a4 {[%clk 0:02:57]}  O-O {[%clk 0:02:57]} 7. Be2 {[%clk 0:02:54]}  Nbd7 {[%clk 0:02:55]} 8. e5 {[%clk 0:02:43]}  Nd5 {[%clk 0:02:55]} 9. exd6 {[%clk 0:02:40]}  e6 {[%clk 0:02:50]} 10. O-O {[%clk 0:02:34]}  Nxc3 {[%clk 0:02:45]} 11. bxc3 {[%clk 0:02:33]}  Nb6 {[%clk 0:02:45]} 12. a5 {[%clk 0:02:27]}  Nd5 {[%clk 0:02:44]} 13. Qe1 {[%clk 0:02:20]}  Re8 {[%clk 0:02:31]} 14. c4 {[%clk 0:02:17]}  Nf6 {[%clk 0:02:29]} 15. c5 {[%clk 0:02:14]}  Nd7 {[%clk 0:02:26]} 16. c3 {[%clk 0:02:04]}  e5 {[%clk 0:02:26]} 17. Be3 {[%clk 0:02:02]}  h6 {[%clk 0:02:17]} 18. Qd2 {[%clk 0:02:00]}  Kh7 {[%clk 0:02:15]} 19. Bc4 {[%clk 0:01:46]}  f5 {[%clk 0:02:07]} 20. dxe5 {[%clk 0:01:38]}  Nxe5 {[%clk 0:02:06]} 21. Nxe5 {[%clk 0:01:37]}  Bxe5 {[%clk 0:02:03]} 22. Bxh6 {[%clk 0:01:27]}  Qf6 {[%clk 0:01:40]} 23. Bg5 {[%clk 0:01:21]}  Qg7 {[%clk 0:01:39]} 24. Rad1 {[%clk 0:01:15]}  Bd7 {[%clk 0:01:38]} 25. Rc1 {[%clk 0:01:00]}  Bf6 {[%clk 0:01:30]} 26. Rfe1 {[%clk 0:00:54]}  Rxe1+ {[%clk 0:01:14]} 27. Rxe1 {[%clk 0:00:49]}  Re8 {[%clk 0:01:11]} 28. Bxf6 {[%clk 0:00:41]}  Rxe1+ {[%clk 0:01:07]} 29. Qxe1 {[%clk 0:00:39]}  Qxf6 {[%clk 0:01:08]} 30. Qe3 {[%clk 0:00:36]}  Kg7 {[%clk 0:01:07]} 31. Qd4 {[%clk 0:00:33]}  g5 {[%clk 0:00:58]} 32. g3 {[%clk 0:00:30]}  Kg6 {[%clk 0:00:56]} 33. Qxf6+ {[%clk 0:00:29]}  Kxf6 {[%clk 0:00:56]} 34. f4 {[%clk 0:00:30]}  gxf4 {[%clk 0:00:53]} 35. gxf4 {[%clk 0:00:31]}  Kg6 {[%clk 0:00:48]} 36. Kg2 {[%clk 0:00:30]}  Kh5 {[%clk 0:00:49]} 37. Kg3 {[%clk 0:00:30]}  a6 {[%clk 0:00:47]} 38. Bf7+ {[%clk 0:00:27]}  Kh6 {[%clk 0:00:47]} 39. h4 {[%clk 0:00:24]}  Kg7 {[%clk 0:00:47]} 40. Bc4 {[%clk 0:00:23]}  Kf6 {[%clk 0:00:47]} 41. h5 {[%clk 0:00:20]}  Kg7 {[%clk 0:00:47]} 42. Kf3 {[%clk 0:00:19]}  Kh6 {[%clk 0:00:47]} 43. Bf7 {[%clk 0:00:19]}  Kg7 {[%clk 0:00:48]} 44. Bg6 {[%clk 0:00:19]}  Kh6 {[%clk 0:00:48]} 45. Ke3 {[%clk 0:00:19]}  Kg7 {[%clk 0:00:48]} 46. Kd4 {[%clk 0:00:19]}  Kf6 {[%clk 0:00:49]} 47. Bh7 {[%clk 0:00:17]}  Be6 {[%clk 0:00:46]} 48. h6 {[%clk 0:00:16]}  Bd7 {[%clk 0:00:37]} 49. Bxf5 {[%clk 0:00:13]}  Bxf5 {[%clk 0:00:36]} 50. h7 {[%clk 0:00:12]}  Bxh7 {[%clk 0:00:36]} 51. d7 {[%clk 0:00:11]}  Ke7 {[%clk 0:00:36]} 52. Ke5 {[%clk 0:00:11]}  Kxd7 {[%clk 0:00:36]} 53. f5 {[%clk 0:00:11]}  Ke7 {[%clk 0:00:36]} 54. f6+ {[%clk 0:00:11]}  Kf7 {[%clk 0:00:36]} 55. Kd6 {[%clk 0:00:11]}  Bd3 {[%clk 0:00:35]} 56. Kc7 {[%clk 0:00:12]}  Bb5 {[%clk 0:00:35]} 57. Kxb7 {[%clk 0:00:09]}  Kxf6 {[%clk 0:00:35]} 58. c4 {[%clk 0:00:10]}  Bxc4 {[%clk 0:00:21]} 59. Kxc6 {[%clk 0:00:09]}  Ke7 {[%clk 0:00:22]} 60. Kc7 {[%clk 0:00:08]}  Bb5 {[%clk 0:00:21]} 61. c6 {[%clk 0:00:08]}  Ke6 {[%clk 0:00:20]} 62. Kb7 {[%clk 0:00:06]}  Kd6 {[%clk 0:00:20]} 63. c7 {[%clk 0:00:06]}  Bc6+ {[%clk 0:00:20]} 64. Kb8 {[%clk 0:00:02]}  Bd7 {[%clk 0:00:20]} 65. Kb7 {[%clk 0:00:02]}  Kc5 {[%clk 0:00:19]} 0-1


[Site "https://www.chess.com"]

[Event "Titled Tuesday Blitz October 11 Late 2022"]
[White "Milosevic, Milos"]
[Black "Goryachkina, Aleksandra"]
[WhiteFideId "964875"]
[BlackFideId "4147103"]
[WhiteElo "2321"]
[BlackElo "2484"]
[Result "0-1"]
[Round "04"]
[TimeControl "180+1"]
[Date "2022.10.12"]
[WhiteClock "0:00:13"]
[BlackClock "0:01:11"]

1. e4 {[%clk 0:03:00]}  e6 {[%clk 0:02:59]} 2. d4 {[%clk 0:02:59]}  d5 {[%clk 0:02:59]} 3. Nc3 {[%clk 0:02:59]}  Bb4 {[%clk 0:02:59]} 4. e5 {[%clk 0:02:59]}  c5 {[%clk 0:02:59]} 5. a3 {[%clk 0:02:59]}  Bxc3+ {[%clk 0:02:59]} 6. bxc3 {[%clk 0:03:00]}  Ne7 {[%clk 0:02:59]} 7. Qg4 {[%clk 0:02:59]}  cxd4 {[%clk 0:02:52]} 8. cxd4 {[%clk 0:02:54]}  Qc7 {[%clk 0:02:52]} 9. Bd2 {[%clk 0:02:47]}  Qxc2 {[%clk 0:02:45]} 10. Rc1 {[%clk 0:02:28]}  Qe4+ {[%clk 0:02:45]} 11. Qxe4 {[%clk 0:02:27]}  dxe4 {[%clk 0:02:45]} 12. Bb4 {[%clk 0:02:06]}  Nbc6 {[%clk 0:02:43]} 13. Bb5 {[%clk 0:01:57]}  Bd7 {[%clk 0:02:43]} 14. Ne2 {[%clk 0:01:44]}  Nxb4 {[%clk 0:02:39]} 15. Bxd7+ {[%clk 0:01:43]}  Kxd7 {[%clk 0:02:39]} 16. axb4 {[%clk 0:01:44]}  Rhc8 {[%clk 0:02:38]} 17. Kd2 {[%clk 0:01:40]}  f5 {[%clk 0:02:29]} 18. g4 {[%clk 0:01:06]}  g6 {[%clk 0:01:59]} 19. gxf5 {[%clk 0:01:04]}  gxf5 {[%clk 0:01:58]} 20. Nf4 {[%clk 0:00:52]}  Rxc1 {[%clk 0:01:34]} 21. Rxc1 {[%clk 0:00:51]}  a6 {[%clk 0:01:34]} 22. Ke3 {[%clk 0:00:34]}  Rc8 {[%clk 0:01:25]} 23. Rxc8 {[%clk 0:00:33]}  Nxc8 {[%clk 0:01:25]} 24. d5 {[%clk 0:00:34]}  exd5 {[%clk 0:01:14]} 25. Nxd5 {[%clk 0:00:28]}  Ne7 {[%clk 0:01:13]} 26. Nf4 {[%clk 0:00:16]}  Nc6 {[%clk 0:01:13]} 27. e6+ {[%clk 0:00:15]}  Kd6 {[%clk 0:01:12]} 28. h4 {[%clk 0:00:14]}  Nxb4 {[%clk 0:01:11]} 29. Kd4 {[%clk 0:00:14]}  Nc6+ {[%clk 0:01:11]} 30. Kc4 {[%clk 0:00:14]}  b5+ {[%clk 0:01:11]} 31. Kb3 {[%clk 0:00:13]} 0-1


[Site "https://www.chess.com"]

[Event "Titled Tuesday Blitz October 11 Late 2022"]
[White "Mirzoev, Azer"]
[Black "Jorquera, Marcelo"]
[WhiteFideId "13400304"]
[BlackFideId "3401197"]
[WhiteElo "2525"]
[BlackElo "2136"]
[Result "1-0"]
[Round "04"]
[TimeControl "180+1"]
[Date "2022.10.12"]
[WhiteClock "0:00:58"]
[BlackClock "0:00:05"]

1. c4 {[%clk 0:02:59]}  Nf6 {[%clk 0:02:56]} 2. Nc3 {[%clk 0:02:59]}  g6 {[%clk 0:02:55]} 3. g3 {[%clk 0:02:59]}  Bg7 {[%clk 0:02:54]} 4. Bg2 {[%clk 0:03:00]}  O-O {[%clk 0:02:51]} 5. e4 {[%clk 0:03:00]}  d6 {[%clk 0:02:49]} 6. Nge2 {[%clk 0:03:00]}  c5 {[%clk 0:02:46]} 7. O-O {[%clk 0:03:00]}  Nc6 {[%clk 0:02:46]} 8. d3 {[%clk 0:03:00]}  Rb8 {[%clk 0:02:43]} 9. h3 {[%clk 0:02:56]}  a6 {[%clk 0:02:42]} 10. a4 {[%clk 0:02:56]}  Nd4 {[%clk 0:02:33]} 11. Nxd4 {[%clk 0:02:54]}  cxd4 {[%clk 0:02:32]} 12. Ne2 {[%clk 0:02:55]}  Nd7 {[%clk 0:02:11]} 13. b4 {[%clk 0:02:53]}  a5 {[%clk 0:02:07]} 14. b5 {[%clk 0:02:47]}  Nc5 {[%clk 0:02:03]} 15. f4 {[%clk 0:02:48]}  f5 {[%clk 0:01:29]} 16. exf5 {[%clk 0:02:46]}  gxf5 {[%clk 0:01:27]} 17. Ra2 {[%clk 0:02:29]}  e5 {[%clk 0:01:24]} 18. Kh2 {[%clk 0:02:21]}  Kh8 {[%clk 0:01:20]} 19. fxe5 {[%clk 0:02:16]}  dxe5 {[%clk 0:01:20]} 20. Ba3 {[%clk 0:02:17]}  Qc7 {[%clk 0:01:04]} 21. Ng1 {[%clk 0:02:16]}  b6 {[%clk 0:01:03]} 22. Raf2 {[%clk 0:02:15]}  Bd7 {[%clk 0:00:30]} 23. Bd5 {[%clk 0:02:13]}  f4 {[%clk 0:00:15]} 24. g4 {[%clk 0:02:06]}  Rbc8 {[%clk 0:00:08]} 25. Nf3 {[%clk 0:02:02]}  Qd6 {[%clk 0:00:07]} 26. Ng5 {[%clk 0:01:58]}  Qg6 {[%clk 0:00:06]} 27. Ne4 {[%clk 0:01:45]}  Nxe4 {[%clk 0:00:05]} 28. Bxe4 {[%clk 0:01:46]}  Qh6 {[%clk 0:00:05]} 29. Bxf8 {[%clk 0:01:40]}  Bxf8 {[%clk 0:00:06]} 30. Qf3 {[%clk 0:01:35]}  Be7 {[%clk 0:00:06]} 31. Rg2 {[%clk 0:01:34]}  Bh4 {[%clk 0:00:06]} 32. Rfg1 {[%clk 0:01:33]}  Rg8 {[%clk 0:00:06]} 33. Bf5 {[%clk 0:01:30]}  Be8 {[%clk 0:00:05]} 34. Qd5 {[%clk 0:01:19]}  Bg3+ {[%clk 0:00:05]} 35. Rxg3 {[%clk 0:01:19]}  fxg3+ {[%clk 0:00:05]} 36. Rxg3 {[%clk 0:01:19]}  Qf6 {[%clk 0:00:05]} 37. Rf3 {[%clk 0:01:10]}  Qg7 {[%clk 0:00:03]} 38. Be6 {[%clk 0:01:05]}  Rf8 {[%clk 0:00:02]} 39. Rxf8+ {[%clk 0:01:05]}  Qxf8 {[%clk 0:00:03]} 40. Qxe5+ {[%clk 0:01:06]}  Qg7 {[%clk 0:00:04]} 41. Qxg7+ {[%clk 0:00:56]}  Kxg7 {[%clk 0:00:05]} 42. Kg3 {[%clk 0:00:56]}  Kf6 {[%clk 0:00:05]} 43. Bf5 {[%clk 0:00:56]}  h6 {[%clk 0:00:05]} 44. Kf4 {[%clk 0:00:57]}  Bf7 {[%clk 0:00:04]} 45. h4 {[%clk 0:00:56]}  Be8 {[%clk 0:00:04]} 46. g5+ {[%clk 0:00:57]}  hxg5+ {[%clk 0:00:05]} 47. hxg5+ {[%clk 0:00:58]}  Ke7 {[%clk 0:00:05]} 48. Ke5 {[%clk 0:00:58]} 1-0


[Site "https://www.chess.com"]

[Event "Titled Tuesday Blitz October 11 Late 2022"]
[White "Naroditsky, Daniel"]
[Black "Girel, Joseph"]
[WhiteFideId "2026961"]
[BlackFideId "36033561"]
[WhiteElo "2628"]
[BlackElo "2281"]
[Result "1-0"]
[Round "04"]
[TimeControl "180+1"]
[Date "2022.10.11"]
[WhiteClock "0:00:30"]
[BlackClock "0:00:09"]

1. e4 {[%clk 0:03:00]}  e5 {[%clk 0:02:59]} 2. Nf3 {[%clk 0:03:01]}  Nc6 {[%clk 0:02:59]} 3. Bb5 {[%clk 0:03:00]}  Nf6 {[%clk 0:02:59]} 4. O-O {[%clk 0:03:00]}  Nxe4 {[%clk 0:02:58]} 5. d4 {[%clk 0:03:01]}  Nd6 {[%clk 0:02:58]} 6. Ba4 {[%clk 0:03:01]}  e4 {[%clk 0:02:57]} 7. Ne5 {[%clk 0:03:02]}  Be7 {[%clk 0:02:55]} 8. Nc3 {[%clk 0:03:02]}  O-O {[%clk 0:02:55]} 9. Re1 {[%clk 0:03:03]}  Bf6 {[%clk 0:02:54]} 10. Bf4 {[%clk 0:03:03]}  Re8 {[%clk 0:02:46]} 11. Nxe4 {[%clk 0:03:03]}  Nxe4 {[%clk 0:02:29]} 12. Rxe4 {[%clk 0:03:03]}  Ne7 {[%clk 0:02:01]} 13. Nxf7 {[%clk 0:02:05]}  Kxf7 {[%clk 0:01:58]} 14. Qh5+ {[%clk 0:02:05]}  Kg8 {[%clk 0:01:47]} 15. Bxc7 {[%clk 0:02:00]}  g6 {[%clk 0:01:30]} 16. Qf3 {[%clk 0:00:51]}  Qxc7 {[%clk 0:00:57]} 17. Qxf6 {[%clk 0:00:51]}  Qd8 {[%clk 0:00:35]} 18. Rae1 {[%clk 0:00:51]}  Rf8 {[%clk 0:00:23]} 19. Qxe7 {[%clk 0:00:52]}  Qa5 {[%clk 0:00:18]} 20. Bb3+ {[%clk 0:00:34]}  d5 {[%clk 0:00:17]} 21. Re5 {[%clk 0:00:34]}  Bf5 {[%clk 0:00:09]} 22. Rxd5 {[%clk 0:00:30]} 1-0


[Site "https://www.chess.com"]

[Event "Titled Tuesday Blitz October 11 Late 2022"]
[White "Noboa Silva, Kevin"]
[Black "Leiva, Gianmarco"]
[WhiteFideId "3618471"]
[BlackFideId "3804399"]
[WhiteElo "2564"]
[BlackElo "2754"]
[Result "1/2-1/2"]
[Round "04"]
[TimeControl "180+1"]
[Date "2022.10.12"]
[WhiteClock "0:00:04"]
[BlackClock "0:00:12"]

1. d4 {[%clk 0:03:00]}  Nf6 {[%clk 0:02:59]} 2. c4 {[%clk 0:03:00]}  e6 {[%clk 0:02:59]} 3. Nc3 {[%clk 0:03:00]}  Bb4 {[%clk 0:02:59]} 4. a3 {[%clk 0:03:01]}  Bxc3+ {[%clk 0:02:58]} 5. bxc3 {[%clk 0:03:02]}  c5 {[%clk 0:02:57]} 6. f3 {[%clk 0:03:01]}  Nc6 {[%clk 0:02:50]} 7. e4 {[%clk 0:03:01]}  d6 {[%clk 0:02:49]} 8. Be3 {[%clk 0:02:55]}  Qa5 {[%clk 0:02:44]} 9. Qd2 {[%clk 0:02:53]}  O-O {[%clk 0:02:37]} 10. Bd3 {[%clk 0:02:50]}  Qc7 {[%clk 0:02:32]} 11. Ne2 {[%clk 0:02:48]}  b6 {[%clk 0:02:32]} 12. O-O {[%clk 0:02:47]}  Ba6 {[%clk 0:02:31]} 13. Bg5 {[%clk 0:02:46]}  Nd7 {[%clk 0:02:25]} 14. f4 {[%clk 0:02:36]}  f6 {[%clk 0:01:58]} 15. Bh4 {[%clk 0:02:33]}  Na5 {[%clk 0:01:57]} 16. d5 {[%clk 0:02:29]}  e5 {[%clk 0:01:56]} 17. Qa2 {[%clk 0:02:23]}  Rae8 {[%clk 0:01:48]} 18. f5 {[%clk 0:02:22]}  g5 {[%clk 0:01:38]} 19. Bf2 {[%clk 0:02:14]}  h5 {[%clk 0:01:04]} 20. a4 {[%clk 0:02:14]}  Kf7 {[%clk 0:01:03]} 21. Be3 {[%clk 0:02:12]}  Rh8 {[%clk 0:01:02]} 22. Kf2 {[%clk 0:02:12]}  Reg8 {[%clk 0:01:01]} 23. Ke1 {[%clk 0:02:12]}  Rg7 {[%clk 0:00:55]} 24. Nc1 {[%clk 0:02:07]}  Ke8 {[%clk 0:00:51]} 25. Qe2 {[%clk 0:02:07]}  Nf8 {[%clk 0:00:50]} 26. Rb1 {[%clk 0:01:55]}  Qd7 {[%clk 0:00:50]} 27. Ra1 {[%clk 0:01:55]}  Kd8 {[%clk 0:00:50]} 28. Kd2 {[%clk 0:01:46]}  Nh7 {[%clk 0:00:31]} 29. Kc2 {[%clk 0:01:46]}  Bc8 {[%clk 0:00:28]} 30. Nb3 {[%clk 0:01:43]}  Nxb3 {[%clk 0:00:28]} 31. Kxb3 {[%clk 0:01:44]}  a5 {[%clk 0:00:27]} 32. Ka3 {[%clk 0:01:43]}  Qa7 {[%clk 0:00:27]} 33. Rab1 {[%clk 0:01:43]}  Nf8 {[%clk 0:00:21]} 34. Rb3 {[%clk 0:01:39]}  Rb7 {[%clk 0:00:21]} 35. Rfb1 {[%clk 0:01:39]}  Bd7 {[%clk 0:00:20]} 36. Bc2 {[%clk 0:01:37]}  Be8 {[%clk 0:00:20]} 37. R3b2 {[%clk 0:01:34]}  Nd7 {[%clk 0:00:21]} 38. Bf2 {[%clk 0:01:30]}  Kc7 {[%clk 0:00:17]} 39. Bb3 {[%clk 0:01:21]}  Kc8 {[%clk 0:00:17]} 40. Rh1 {[%clk 0:01:19]}  Nb8 {[%clk 0:00:16]} 41. Rhb1 {[%clk 0:01:18]}  Rg7 {[%clk 0:00:15]} 42. Bc2 {[%clk 0:01:18]}  Nd7 {[%clk 0:00:15]} 43. Be3 {[%clk 0:01:17]}  Kc7 {[%clk 0:00:15]} 44. Qd1 {[%clk 0:01:17]}  Qa6 {[%clk 0:00:16]} 45. Qe2 {[%clk 0:01:16]}  h4 {[%clk 0:00:16]} 46. Bd3 {[%clk 0:01:10]}  Bh5 {[%clk 0:00:13]} 47. Qd2 {[%clk 0:01:10]}  Be8 {[%clk 0:00:14]} 48. Qc2 {[%clk 0:01:08]}  Rgh7 {[%clk 0:00:13]} 49. Qb3 {[%clk 0:01:08]}  Rg7 {[%clk 0:00:12]} 50. Be2 {[%clk 0:01:05]}  Bh5 {[%clk 0:00:11]} 51. Bd3 {[%clk 0:01:05]}  Bg4 {[%clk 0:00:11]} 52. Rd2 {[%clk 0:01:03]}  Kb7 {[%clk 0:00:11]} 53. Rbb2 {[%clk 0:01:04]}  Ka7 {[%clk 0:00:12]} 54. Rb1 {[%clk 0:01:03]}  Rb8 {[%clk 0:00:12]} 55. Rdb2 {[%clk 0:01:04]}  Bh5 {[%clk 0:00:12]} 56. Bf1 {[%clk 0:01:03]}  Be8 {[%clk 0:00:12]} 57. Bd3 {[%clk 0:01:03]}  Nf8 {[%clk 0:00:12]} 58. Bf1 {[%clk 0:01:03]}  Qc8 {[%clk 0:00:11]} 59. Bd3 {[%clk 0:01:02]}  Rgb7 {[%clk 0:00:12]} 60. Qc2 {[%clk 0:01:02]}  Qd7 {[%clk 0:00:12]} 61. Be2 {[%clk 0:01:02]}  Qh7 {[%clk 0:00:12]} 62. Bd3 {[%clk 0:01:01]}  Qh5 {[%clk 0:00:12]} 63. Be2 {[%clk 0:01:01]}  Qh7 {[%clk 0:00:13]} 64. Bd3 {[%clk 0:01:01]}  Bh5 {[%clk 0:00:13]} 65. Bf1 {[%clk 0:01:01]}  Qd7 {[%clk 0:00:13]} 66. Bd3 {[%clk 0:01:00]}  Nh7 {[%clk 0:00:13]} 67. Bf1 {[%clk 0:01:00]}  Qg7 {[%clk 0:00:12]} 68. Bd3 {[%clk 0:01:00]}  Qg8 {[%clk 0:00:10]} 69. Bf1 {[%clk 0:00:53]}  Nf8 {[%clk 0:00:09]} 70. Be2 {[%clk 0:00:51]}  Bxe2 {[%clk 0:00:08]} 71. Qxe2 {[%clk 0:00:51]}  Rg7 {[%clk 0:00:07]} 72. Rb5 {[%clk 0:00:51]}  Qf7 {[%clk 0:00:07]} 73. Qb2 {[%clk 0:00:49]}  Qc7 {[%clk 0:00:07]} 74. Qc2 {[%clk 0:00:47]}  Nd7 {[%clk 0:00:07]} 75. R1b3 {[%clk 0:00:46]}  Rh8 {[%clk 0:00:07]} 76. Qb2 {[%clk 0:00:45]}  Rhg8 {[%clk 0:00:06]} 77. Qc2 {[%clk 0:00:45]}  Rh7 {[%clk 0:00:06]} 78. Rb1 {[%clk 0:00:45]}  Rb8 {[%clk 0:00:06]} 79. R5b2 {[%clk 0:00:45]}  Rb7 {[%clk 0:00:07]} 80. Qb3 {[%clk 0:00:45]}  Nb8 {[%clk 0:00:06]} 81. Qc2 {[%clk 0:00:44]}  Qd7 {[%clk 0:00:06]} 82. Rb5 {[%clk 0:00:44]}  Qd8 {[%clk 0:00:06]} 83. Qb3 {[%clk 0:00:44]}  Na6 {[%clk 0:00:06]} 84. Qc2 {[%clk 0:00:43]}  Nc7 {[%clk 0:00:06]} 85. R5b2 {[%clk 0:00:41]}  Qd7 {[%clk 0:00:06]} 86. Bg1 {[%clk 0:00:38]}  Rh8 {[%clk 0:00:06]} 87. Be3 {[%clk 0:00:38]}  Qf7 {[%clk 0:00:06]} 88. Bd2 {[%clk 0:00:36]}  Qh5 {[%clk 0:00:06]} 89. Qd1 {[%clk 0:00:33]}  Qf7 {[%clk 0:00:04]} 90. Qe2 {[%clk 0:00:33]}  Qe8 {[%clk 0:00:04]} 91. Be3 {[%clk 0:00:33]}  Rb8 {[%clk 0:00:04]} 92. Qd1 {[%clk 0:00:31]}  Qc8 {[%clk 0:00:05]} 93. Rb3 {[%clk 0:00:31]}  Qa6 {[%clk 0:00:05]} 94. Qe2 {[%clk 0:00:30]}  Rh7 {[%clk 0:00:05]} 95. Qd3 {[%clk 0:00:27]}  Ne8 {[%clk 0:00:04]} 96. Rb5 {[%clk 0:00:25]}  Ng7 {[%clk 0:00:04]} 97. R1b2 {[%clk 0:00:24]}  Nh5 {[%clk 0:00:04]} 98. Qb1 {[%clk 0:00:24]}  Nf4 {[%clk 0:00:04]} 99. Qf1 {[%clk 0:00:17]}  Qc8 {[%clk 0:00:04]} 100. Qb1 {[%clk 0:00:16]}  Rbb7 {[%clk 0:00:04]} 101. Qf1 {[%clk 0:00:16]}  Qc7 {[%clk 0:00:04]} 102. Qb1 {[%clk 0:00:16]}  Qd8 {[%clk 0:00:05]} 103. Qf1 {[%clk 0:00:16]}  Rhg7 {[%clk 0:00:04]} 104. Qb1 {[%clk 0:00:16]}  Rge7 {[%clk 0:00:05]} 105. Qf1 {[%clk 0:00:16]}  Rb8 {[%clk 0:00:04]} 106. Qb1 {[%clk 0:00:16]}  Reb7 {[%clk 0:00:05]} 107. Qf1 {[%clk 0:00:16]}  Qe8 {[%clk 0:00:05]} 108. g3 {[%clk 0:00:16]}  hxg3 {[%clk 0:00:03]} 109. hxg3 {[%clk 0:00:17]}  Nh5 {[%clk 0:00:04]} 110. Rh2 {[%clk 0:00:17]}  Rg7 {[%clk 0:00:02]} 111. Qh3 {[%clk 0:00:16]}  Nf4 {[%clk 0:00:01]} 112. gxf4 {[%clk 0:00:16]}  exf4 {[%clk 0:00:02]} 113. Bd2 {[%clk 0:00:13]}  Qxe4 {[%clk 0:00:02]} 114. Qf1 {[%clk 0:00:12]}  Qxf5 {[%clk 0:00:02]} 115. Qb1 {[%clk 0:00:12]}  Qxb1 {[%clk 0:00:02]} 116. Rxb1 {[%clk 0:00:12]}  Re8 {[%clk 0:00:02]} 117. Rg1 {[%clk 0:00:12]}  Re4 {[%clk 0:00:02]} 118. Rf2 {[%clk 0:00:11]}  Rxc4 {[%clk 0:00:02]} 119. Rxf4 {[%clk 0:00:10]}  Rxf4 {[%clk 0:00:01]} 120. Bxf4 {[%clk 0:00:10]}  Rd7 {[%clk 0:00:02]} 121. Be3 {[%clk 0:00:10]}  Kb7 {[%clk 0:00:02]} 122. c4 {[%clk 0:00:10]}  Re7 {[%clk 0:00:02]} 123. Bd2 {[%clk 0:00:10]}  Re2 {[%clk 0:00:03]} 124. Bc3 {[%clk 0:00:10]}  Re4 {[%clk 0:00:03]} 125. Kb3 {[%clk 0:00:10]}  Rf4 {[%clk 0:00:03]} 126. Rg2 {[%clk 0:00:10]}  Rf3 {[%clk 0:00:03]} 127. Kc2 {[%clk 0:00:10]}  g4 {[%clk 0:00:03]} 128. Rxg4 {[%clk 0:00:09]}  Kc8 {[%clk 0:00:03]} 129. Rg7 {[%clk 0:00:09]}  Rf2+ {[%clk 0:00:03]} 130. Kb3 {[%clk 0:00:09]}  Rf3 {[%clk 0:00:03]} 131. Rf7 {[%clk 0:00:09]}  f5 {[%clk 0:00:04]} 132. Kc2 {[%clk 0:00:08]}  Rf2+ {[%clk 0:00:04]} 133. Kd3 {[%clk 0:00:09]}  Rf3+ {[%clk 0:00:05]} 134. Kd2 {[%clk 0:00:09]}  Rf4 {[%clk 0:00:06]} 135. Kd3 {[%clk 0:00:05]}  Rf3+ {[%clk 0:00:06]} 136. Kc2 {[%clk 0:00:06]}  Rf2+ {[%clk 0:00:06]} 137. Bd2 {[%clk 0:00:06]}  Rf3 {[%clk 0:00:06]} 138. Rg7 {[%clk 0:00:05]}  Ra3 {[%clk 0:00:06]} 139. Bf4 {[%clk 0:00:04]}  Rxa4 {[%clk 0:00:06]} 140. Kb3 {[%clk 0:00:04]}  Rb4+ {[%clk 0:00:07]} 141. Kc3 {[%clk 0:00:05]}  a4 {[%clk 0:00:07]} 142. Bxd6 {[%clk 0:00:05]}  Rb3+ {[%clk 0:00:07]} 143. Kc2 {[%clk 0:00:05]}  Rb4 {[%clk 0:00:08]} 144. Kc3 {[%clk 0:00:04]}  Rb3+ {[%clk 0:00:09]} 145. Kc2 {[%clk 0:00:04]}  Rb4 {[%clk 0:00:10]} 146. Rc7+ {[%clk 0:00:04]}  Kd8 {[%clk 0:00:10]} 147. Kc3 {[%clk 0:00:04]}  Rb3+ {[%clk 0:00:10]} 148. Kc2 {[%clk 0:00:05]}  Rb4 {[%clk 0:00:11]} 149. Kc3 {[%clk 0:00:04]}  Rb3+ {[%clk 0:00:11]} 150. Kc2 {[%clk 0:00:04]}  Rb4 {[%clk 0:00:12]} 1/2-1/2


[Site "https://www.chess.com"]